Cogmind - Beta 15 @@@ ROGUE MODE // 2025.07.24 @ 21:14:24 Player: lvl5hm Result: Self-destructed Performance ------------- Evolutions (4) 2000 Regions Visited (7) 1400 Robots Destroyed (1) 5 Value Destroyed (11) 11 Prototype IDs (26) 520 Alien Tech Used (0) 0 Bonus (1425) 1425 TOTAL SCORE: 5361 Bonus ------- Pacifist 1125 Aligned with FarCom 300 Cogmind --------- Core Integrity 730/850 Matter 113/300 Energy 105/160 System Corruption 4% Temperature Cool (0) Movement Hovering (56) Location -6/Factory Parts ------- > --- POWER (1) -------- Light Nuclear Core > --- PROPULSION (4) --- Gravmag Array Gravmag Array > --- UTILITY (8) ------ Advanced Weight Redist. System Structural Scanner Improved Signal Interpreter Propulsion Shielding > --- WEAPON (2) ------- Phase Cannon Longsword +1 > --- INVENTORY (5) ---- Enhanced Nuclear Core Airjet IFF Parser Improved Light Armor Plating Gauss Cannon Peak State ------------ > --- POWER ------------ Enhanced Nuclear Core > --- PROPULSION ------- Gravmag Array Gravmag Array > --- UTILITY ---------- Advanced Weight Redist. System Structural Scanner Signal Interpreter IFF Parser Propulsion Shielding Improved Light Armor Plating Recalibrator > --- WEAPON ----------- Phase Cannon Longsword +1 > --- INVENTORY -------- Airjet Gauss Cannon Mining Laser [Rating: 56] Favorites ----------- Power Enhanced Nuclear Core Power Core Enhanced Nuclear Core Propulsion Gravmag Array Treads Light Treads Hover Unit Gravmag Array Flight Unit Cesium-ion Thruster Utility Structural Scanner Device Structural Scanner Processor Signal Interpreter Protection Propulsion Shielding Weapon Longsword +1 Energy Cannon Phase Cannon Slashing Weapon Longsword +1 Build | -11 -10 -10 -10 -9 -8 -7 -6 ------- Run | Yrd Mat Min Exi Min Mat Fac Fac Slots Evolved 8 | . . . . . 4 2 2 Power . | . . . . . . . . Propulsion 2 | . . . . . 1 1 . Utility 6 | . . . . . 3 1 2 Weapon . | . . . . . . . . Parts Attached 18 | 2 2 . . . 3 2 9 Power 2 | . . . . . . 1 1 Engine . | . . . . . . . . Core 2 | . . . . . . 1 1 Reactor . | . . . . . . . . Propulsion 6 | 2 . . . . 1 1 2 Treads 2 | 2 . . . . . . . Leg . | . . . . . . . . Wheel . | . . . . . . . . Hover 3 | . . . . . 1 . 2 Flight 1 | . . . . . . 1 . Utility 8 | . 2 . . . 1 . 5 Device 4 | . 1 . . . . . 3 Storage . | . . . . . . . . Processor 2 | . 1 . . . . . 1 Hackware . | . . . . . . . . Protection 2 | . . . . . 1 . 1 Artifact . | . . . . . . . . Weapon 2 | . . . . . 1 . 1 Energy Gun . | . . . . . . . . Energy Cannon 1 | . . . . . . . 1 Ballistic Gun . | . . . . . . . . Ballistic Cannon . | . . . . . . . . Launcher . | . . . . . . . . Special Weapon . | . . . . . . . . Impact Weapon . | . . . . . . . . Slashing Weapon 1 | . . . . . 1 . . Piercing Weapon . | . . . . . . . . Special Melee Weapon . | . . . . . . . . Unidentified Prototypes 1 | . . . . . . 1 . Parts Lost 1 | . . . . . . . 1 Power . | . . . . . . . . Propulsion . | . . . . . . . . Utility 1 | . . . . . . . 1 Weapon . | . . . . . . . . Highest Loss Streak 1 | . . . . . . . 1 To Critical Strikes . | . . . . . . . . Average Backups 3 | . . 2 2 3 4 4 4 Power . | . . . . . . 1 . Propulsion . | . . . . . 1 . . Utility . | . . . . . . . 1 Weapon 1 | . . 2 2 3 2 1 1 Tool/Special . | . . . . . . . . Unused Backups 4 | . . . . . . 2 2 Power 1 | . . . . . . 1 . Propulsion . | . . . . . . . . Utility . | . . . . . . . . Weapon 3 | . . . . . . 1 2 Tool/Special . | . . . . . . . . Average Slot Usage (%) 54 | . 38 57 57 57 40 44 65 Core 1 | . . . . . . . 4 Treads 9 | . 28 28 28 28 7 . . Hover 6 | . . . . . 5 7 12 Flight 1 | . . . . . . 5 1 Device 12 | . 3 14 14 14 7 7 18 Processor 8 | . 7 14 14 14 9 7 4 Protection 5 | . . . . . 4 7 8 Energy Cannon 1 | . . . . . . . 4 Slashing Weapon 4 | . . . . . 6 7 6 Peak Build Rating 56 | 2 4 4 5 5 14 22 56 Average Rating 24 | 1 2 4 4 5 11 17 48 On Entrance 6 | . 2 4 4 5 5 14 18 Naked Turns . | . . . . . . . . Heaviest Build 26 | . 1 1 1 1 5 5 26 Greatest Support 49 | 20 3 3 3 3 8 8 49 Greatest Overweight (x) 7 | . . . . . . . 7 Average Overweight (x) . | . . . . . . . . Largest Inventory Capacity 5 | 5 5 5 5 5 5 5 5 Average Capacity 5 | 5 5 5 5 5 5 5 5 Most Carried 5 | . 2 2 3 3 5 5 5 Average Carried 3 | . . 2 2 3 3 4 3 Final Capacity 5 | 5 5 5 5 5 5 5 5 Final Carried 5 | . 2 2 3 3 5 4 5 Class Distribution -------------------- 89% | Mutant 7% | Scout 3% | Assassin Dominant Class ---------------- Mutant | -10/Materials Mutant | -10/Mines Mutant | -10/Exiles Mutant | -9/Mines Mutant | -8/Materials Mutant | -7/Factory Mutant | -6/Factory Resources | -11 -10 -10 -10 -9 -8 -7 -6 ----------- Run | Yrd Mat Min Exi Min Mat Fac Fac Matter Collected 247 | 220 . . . 27 . . . Remotely . | . . . . . . . . Salvage Created 20 | . . . . . . . 20 Parts 2 | . . . . . . . 2 Haulers Intercepted . | . . . . . . . . Recyclers Shooed . | . . . . . . . . Parts Field Recycled . | . . . . . . . . Retrieved Matter . | . . . . . . . . Parts Self-Destructed . | . . . . . . . . Prevented . | . . . . . . . . Kills | -11 -10 -10 -10 -9 -8 -7 -6 ------- Run | Yrd Mat Min Exi Min Mat Fac Fac Combat Hostiles Destroyed . | . . . . . . . . Classes Destroyed 1 | . . . . . . . 1 Worker 1 | . . . . . . . 1 Best Kill Streak 1 | . . . . . . . 1 Combat Bots Only . | . . . . . . . . Max Kills in Single Turn 1 | . . . . . . . 1 Gunslinging . | . . . . . . . . Exploded . | . . . . . . . . Melee . | . . . . . . . . Uniques/NPCs Destroyed . | . . . . . . . . Combat | -11 -10 -10 -10 -9 -8 -7 -6 -------- Run | Yrd Mat Min Exi Min Mat Fac Fac Hostile Shots Fired 29 | . . . . 29 . . . Missed 12 | . . . . 12 . . . Hits 17 | . . . . 17 . . . Projectile 17 | . . . . 17 . . . Damage Taken 506 | . . . . 140 . . 366 Core 145 | . . . . 25 . . 120 Absorbed by Shields . | . . . . . . . . Core Remaining (%) 97 | 100 . . . 90 100 100 . Volleys Fired 1 | . . . . . . . 1 Largest 1 | . . . . . . . 1 Hottest 85 | . . . . . . . 85 Shots Fired 1 | . . . . . . . 1 Gun . | . . . . . . . . Cannon 1 | . . . . . . . 1 Launcher . | . . . . . . . . Special . | . . . . . . . . Kinetic . | . . . . . . . . Thermal 1 | . . . . . . . 1 Explosive . | . . . . . . . . Electromagnetic . | . . . . . . . . Robot Hit Streak . | . . . . . . . . Robot Miss Streak . | . . . . . . . . Penetration Max . | . . . . . . . . Secondary Targets . | . . . . . . . . Shots Hit Robots 1 | . . . . . . . 1 Core Hits 1 | . . . . . . . 1 Critical Kills . | . . . . . . . . Critical Parts Destroyed . | . . . . . . . . Critical Strikes . | . . . . . . . . Melee Attacks 15 | . . . . . 7 . 8 Impact . | . . . . . . . . Slashing 15 | . . . . . 7 . 8 Piercing . | . . . . . . . . Sneak Attacks 1 | . . . . . . . 1 Combat Hostiles . | . . . . . . . . Follow-up Attacks . | . . . . . . . . Damage Inflicted 102 | . . . . . . . 102 Guns . | . . . . . . . . Cannons . | . . . . . . . . Explosions . | . . . . . . . . Melee 102 | . . . . . . . 102 Ramming . | . . . . . . . . Kinetic . | . . . . . . . . Thermal . | . . . . . . . . Explosive . | . . . . . . . . Electromagnetic . | . . . . . . . . Impact . | . . . . . . . . Slashing 102 | . . . . . . . 102 Piercing . | . . . . . . . . Highest Corruption 4 | . 1 1 1 1 . . 4 Average Corruption 2 | . 1 1 1 1 . . 4 Corruption Purged . | . . . . . . . . Corruption Blocked . | . . . . . . . . Effects 9 | . . . 1 . . . 8 Message Errors 5 | . . . . . . . 5 Matter Fused 3 | . . . 1 . . . 2 Data Loss (minor) 1 | . . . . . . . 1 Overload Shots . | . . . . . . . . Overflow Damage . | . . . . . . . . Projectiles . | . . . . . . . . Explosions . | . . . . . . . . Melee . | . . . . . . . . Knockbacks . | . . . . . . . . Impact . | . . . . . . . . Kinetic . | . . . . . . . . Secondary . | . . . . . . . . Self-Inflicted Damage . | . . . . . . . . Shots . | . . . . . . . . Rammed . | . . . . . . . . Targets Rammed . | . . . . . . . . Kicked . | . . . . . . . . Crushed . | . . . . . . . . Highest Temperature 38 | . . . . . . . 38 Average Temperature 25 | . . . . . . . 25 Received Heat Transfer . | . . . . . . . . Siege Activations . | . . . . . . . . Martial Activations . | . . . . . . . . Shielding Activations . | . . . . . . . . Robots Disrupted . | . . . . . . . . Combat Hostiles . | . . . . . . . . Robots Corrupted . | . . . . . . . . Combat Hostiles . | . . . . . . . . Parts Fried . | . . . . . . . . Impact Corruptions . | . . . . . . . . Robots Melted . | . . . . . . . . Combat Hostiles . | . . . . . . . . Parts Melted . | . . . . . . . . Heat Transferred . | . . . . . . . . Parts Sabotaged . | . . . . . . . . Parts Stolen . | . . . . . . . . Parts Stripped . | . . . . . . . . Power Chain Reactions . | . . . . . . . . Alert | -11 -10 -10 -10 -9 -8 -7 -6 ------- Run | Yrd Mat Min Exi Min Mat Fac Fac Maximum Alert Level . | . . . . . . . . Low Security (%) 100 | 100 100 100 . 100 100 100 100 Level 1 . | . . . . . . . . Level 2 . | . . . . . . . . Level 3 . | . . . . . . . . Level 4 . | . . . . . . . . Level 5 . | . . . . . . . . High Security . | . . . . . . . . Max Security . | . . . . . . . . Peak Influence 31 | . 13 . . . 31 14 15 Initial . | . . . . . . . . Average 2 | . 4 . . . 8 1 . Influence Increases 122 | . 18 . . . 46 19 39 Destroy 0b10 Robot/NC 5 | . . . . . . . 5 Successful Hack 89 | . 18 . . . 40 19 12 Disable Machine 15 | . . . . . . . 15 Destroy Structure 13 | . . . . . 6 . 7 Influence Decreases 117 | . 15 3 . . 46 19 34 Entered New Map 3 | . . 3 . . . . . Time Decay 112 | . 15 . . . 46 19 32 Lost Part 2 | . . . . . . . 2 Squads Dispatched 4 | . 2 . . . . . 2 Investigation 1 | . 1 . . . . . . Extermination 1 | . . . . . . . 1 Reinforcement 2 | . 1 . . . . . 1 Assault . | . . . . . . . . Garrison . | . . . . . . . . Intercept . | . . . . . . . . Searches Triggered . | . . . . . . . . Construction Impeded . | . . . . . . . . Haulers Reinforced . | . . . . . . . . Active Scanning Responses . | . . . . . . . . Cargo Convoy Interrupts . | . . . . . . . . Stealth | -11 -10 -10 -10 -9 -8 -7 -6 --------- Run | Yrd Mat Min Exi Min Mat Fac Fac Distress Signals . | . . . . . . . . Communications Jammed . | . . . . . . . . Distress Signals . | . . . . . . . . Times Spotted 13 | . 2 . . 4 1 . 6 Peak Tracking Total 4 | . 1 . . 4 1 . 2 Tactical Retreats . | . . . . . . . . Traps | -11 -10 -10 -10 -9 -8 -7 -6 ------- Run | Yrd Mat Min Exi Min Mat Fac Fac Traps Triggered . | . . . . . . . . Indirectly . | . . . . . . . . Trap Hack Attempts . | . . . . . . . . Triggered . | . . . . . . . . Disarmed . | . . . . . . . . Reprogrammed . | . . . . . . . . Reused . | . . . . . . . . Traps Extracted . | . . . . . . . . Installed . | . . . . . . . . Triggered . | . . . . . . . . Machines | -11 -10 -10 -10 -9 -8 -7 -6 ---------- Run | Yrd Mat Min Exi Min Mat Fac Fac Machines Disabled 1 | . . . . . . . 1 Max in Single Turn 1 | . . . . . . . 1 Machines Repaired . | . . . . . . . . Machines Dismantled . | . . . . . . . . Machines Sabotaged . | . . . . . . . . Overloaded Fab Kills . | . . . . . . . . Hacking | -11 -10 -10 -10 -9 -8 -7 -6 --------- Run | Yrd Mat Min Exi Min Mat Fac Fac Machines Accessed 15 | . 6 . 1 . 3 3 2 Terminals 12 | . 6 . . . 3 3 . Fabricators . | . . . . . . . . Repair Stations 2 | . . . . . . . 2 Recycling Units . | . . . . . . . . Scanalyzers . | . . . . . . . . Garrison Access . | . . . . . . . . Total Hacks 41 | . 20 . 1 . 9 6 5 Successful 16 | . 7 . 1 . 4 3 1 Failed 25 | . 13 . . . 5 3 4 Catastrophic 4 | . 2 . . . . 2 . Database Lockouts . | . . . . . . . . Manual 30 | . 19 . 1 . 5 5 . Terminals 35 | . 20 . . . 9 6 . Fabricators . | . . . . . . . . Repair Stations 5 | . . . . . . . 5 Recycling Units . | . . . . . . . . Scanalyzers . | . . . . . . . . Garrison Access . | . . . . . . . . Terminal Hacks 8 | . 5 . 1 . 2 . . Robot Analysis 2 | . 2 . . . . . . Prototype ID Bank 1 | . 1 . . . . . . Level Access Points 2 | . 1 . . . 1 . . Terminal Index 1 | . . . . . 1 . . Zone Layout 1 | . 1 . . . . . . Proto ID Catalog 1 | . . . 1 . . . . Fabricator Hacks . | . . . . . . . . Repair Station Hacks 1 | . . . . . . . 1 Scan Component 1 | . . . . . . . 1 Recycling Unit Hacks . | . . . . . . . . Scanalyzer . | . . . . . . . . Garrison Access Hacks . | . . . . . . . . Unauthorized Hacks 7 | . 2 . . . 2 3 . Terminals 7 | . 2 . . . 2 3 . Assimilate 1 | . . . . . . 1 . Botnet 6 | . 2 . . . 2 2 . Fabricators . | . . . . . . . . Repair Stations . | . . . . . . . . Recycling Units . | . . . . . . . . Scanalyzers . | . . . . . . . . Garrison Access . | . . . . . . . . Data Cores Recovered . | . . . . . . . . Used . | . . . . . . . . Hacking Detections 14 | . 6 . . . 3 3 2 Full Trace Events 1 | . 1 . . . . . . Feedback Events 1 | . 1 . . . . . . Corruption 1 | . 1 . . . . . . Feedback Blocked . | . . . . . . . . Robot Schematics Acquired . | . . . . . . . . Robots Built . | . . . . . . . . Authchips . | . . . . . . . . Time . | . . . . . . . . Total Robot Build Rating . | . . . . . . . . Part Schematics Acquired . | . . . . . . . . Parts Built . | . . . . . . . . Authchips . | . . . . . . . . Time . | . . . . . . . . Total Part Build Rating . | . . . . . . . . Parts Repaired . | . . . . . . . . Time . | . . . . . . . . Parts Recycled . | . . . . . . . . Recycled Matter . | . . . . . . . . Retrieved Matter . | . . . . . . . . Retrieved Components . | . . . . . . . . Parts Scanalyzed . | . . . . . . . . Part Schematics Acquired . | . . . . . . . . Parts Damaged . | . . . . . . . . Bothacking | -11 -10 -10 -10 -9 -8 -7 -6 ------------ Run | Yrd Mat Min Exi Min Mat Fac Fac Used RIF Installer . | . . . . . . . . Robots Hacked . | . . . . . . . . Non-combat . | . . . . . . . . Combat . | . . . . . . . . Robot Hacks Applied . | . . . . . . . . Relay Couplers Released . | . . . . . . . . Fabnet Peak Effective % . | . . . . . . . . Robots Rewired . | . . . . . . . . Allies Hacked . | . . . . . . . . Hacks Repelled . | . . . . . . . . Allies | -11 -10 -10 -10 -9 -8 -7 -6 -------- Run | Yrd Mat Min Exi Min Mat Fac Fac Total Allies 2 | . . 2 . . . . . Largest Group 2 | . . 2 2 . . . . Highest-Rated Group 49 | . . 49 49 . . . . Highest-Rated Ally 31 | . . 31 31 . . . . Total Orders . | . . . . . . . . Ally Attacks . | . . . . . . . . Total Damage . | . . . . . . . . Kills . | . . . . . . . . Allies Corrupted . | . . . . . . . . Allies Melted . | . . . . . . . . Intel | -11 -10 -10 -10 -9 -8 -7 -6 ------- Run | Yrd Mat Min Exi Min Mat Fac Fac Active Infowar (turns) 1003 | . 19 75 107 35 174 139 454 IFF 108 | . . . . . . . 108 Structural 1003 | . 19 75 107 35 174 139 454 Robot Analysis Total 2 | . 2 . . . . . . Derelict Logs Recovered . | . . . . . . . . Drone Launches . | . . . . . . . . Drone Recoveries . | . . . . . . . . Exploration | -11 -10 -10 -10 -9 -8 -7 -6 ------------- Run | Yrd Mat Min Exi Min Mat Fac Fac Turns Passed 1129 | 24 73 75 107 35 222 139 454 Spaces Moved 1497 | 39 132 113 211 62 270 228 442 Core 709 | 38 132 113 211 62 130 . 23 Treads 1 | 1 . . . . . . . Legs . | . . . . . . . . Wheels . | . . . . . . . . Hover 491 | . . . . . 140 27 324 Flight 296 | . . . . . . 201 95 Fastest Speed 35 | 50 50 50 50 50 50 35 35 Average Speed 55 | 52 50 50 50 50 55 37 69 Slowest Speed 400 | 160 50 50 50 50 60 60 400 Overloaded Moves . | . . . . . . . . Propulsion Burnouts . | . . . . . . . . Robots Hopped . | . . . . . . . . Potential Cave-ins . | . . . . . . . . Cave-ins Triggered 1 | . . . . . . . 1 Exploration Rate (%) 26 | 3 33 40 61 23 31 9 11 Regions Visited 7 Branch Regions 3 Pre-discovered Areas . | . . . . . . . . Known Exits Taken 6 | . 1 1 1 1 1 1 . Unknown Exits Taken 1 | 1 . . . . . . . Scrap Searched . | . . . . . . . . Spaces Dug 14 | . . . . . 7 . 7 Terrain Destroyed 14 | . . . . . 7 . 7 Melee 13 | . . . . . 7 . 6 Projectile 1 | . . . . . . . 1 AOE . | . . . . . . . . Terrain Rammed . | . . . . . . . . Walls Destroyed . | . . . . . . . . Machines Disabled . | . . . . . . . . Actions | -11 -10 -10 -10 -9 -8 -7 -6 --------- Run | Yrd Mat Min Exi Min Mat Fac Fac Total 1779 | 40 137 130 211 65 336 281 579 Wait 225 | . 2 18 . 4 52 45 104 Move 1490 | 38 131 112 210 61 269 227 442 Hop . | . . . . . . . . Pick Up 7 | . 2 . 1 . 1 2 1 Fast Attach 17 | 2 2 . . . 2 2 9 Attach 5 | . . . . . 2 . 3 Detach 10 | . . . . . 3 1 6 Swap . | . . . . . . . . Drop 9 | . . . . . . 4 5 Fire 1 | . . . . . . . 1 Melee 15 | . . . . . 7 . 8 Ram . | . . . . . . . . Kick . | . . . . . . . . Crush . | . . . . . . . . Escape Stasis . | . . . . . . . . Rewire . | . . . . . . . . Trap . | . . . . . . . . Miscellaneous . | . . . . . . . . Route ------- -11/Scrapyard -10/Materials (discovered 4 exits: Mat x3 / *Min) -10/Mines (discovered 2 exits: *Mat / *Exi) -10/Exiles -9/Mines -8/Materials (discovered 3 exits: *Fac x3) -7/Factory -6/Factory (discovered 1 exit: *Ext) History --------- Turn | Location | Event 3 | -11/Scrapyard | Discovered new exit (range 15) 25 | -11/Scrapyard | Entered Materials 67 | -10/Materials | Discovered new exit (range 14) 71 | -10/Materials | Identified exit to Materials 94 | -10/Materials | Identified exit to Mines 98 | -10/Materials | Entered Mines 109 | -10/Mines | Discovered exit to Materials (range 11) 139 | -10/Mines | Deemed a non-threat by the Exiles lab entrance 139 | -10/Mines | Discovered new exit (range 5) 140 | -10/Mines | Identified exit to Exiles 173 | -10/Mines | Entered Exiles 173 | -10/Exiles | Accompanied by 2 allies 186 | -10/Exiles | Met 8R-AWN 194 | -10/Exiles | Met EX-HEX 203 | -10/Exiles | Led the pair of lost Derelicts to a safe place 209 | -10/Exiles | Met EX-BIN 215 | -10/Exiles | Aligned with FarCom system 215 | -10/Exiles | Given EX-Vault access code 227 | -10/Exiles | Opened EX-Vault 230 | -10/Exiles | Found Longsword +1 241 | -10/Exiles | Warned to stay clear of 0b10 Research branches 249 | -10/Exiles | Exiles lab attacked by MAIN.C 274 | -10/Exiles | Discovered new exit (range 14) 279 | -10/Exiles | Identified exit to Mines 280 | -10/Exiles | Left Exiles lab with Longsword +1 280 | -10/Exiles | Entered Mines 309 | -9/Mines | Build established: Mutant 313 | -9/Mines | Discovered new exit (range 6) 315 | -9/Mines | Identified exit to Materials 315 | -9/Mines | Entered Materials 315 | -8/Materials | Evolved 4 slots: Propulsion x1, Utility x3 358 | -8/Materials | Identified exit to Factory 537 | -8/Materials | Entered Factory 537 | -7/Factory | Evolved 2 slots: Propulsion x1, Utility x1 674 | -7/Factory | Discovered new exit (range 5) 676 | -7/Factory | Identified exit to Factory 676 | -7/Factory | Entered another Factory area 676 | -6/Factory | Evolved 2 slots: Utility x2 790 | -6/Factory | Crushed by falling debris 907 | -6/Factory | Discovered new exit (range 12) 913 | -6/Factory | Identified exit to Extension 1130 | -6/Factory | Self-destructed Last Messages --------------- 00953_ Dropped Broken Enh. Nuclear Core. 00955_ Dropped Recalibrator. 00956_ Acquired Broken Enh. Nuclear Core. 00958_ Acquired Recalibrator. 00961_ R-10 Processor collects Mining Laser. 00968_